bitfinex-derivatives/quotes_SOLF0:USTF0_20241218
["timestamp","ask_amount","ask_price","bid_price","bid_amount"]
[1734552181611,291.0,210.94,210.82,32.03403005]
[1734552181813,291.0,210.94,210.87,2.3721]
[1734552182013,291.0,210.97,210.86,32.03403005]
[1734552182215,291.0,210.95,210.82,32.03403005]
[1734552182406,291.0,210.94,210.81,5.57783255]
[1734552182614,291.0,210.93,210.78,32.03403005]
[1734552182810,291.0,210.89,210.74,32.03403005]
[1734552183110,291.0,210.89,210.76,5.63474921]
[1734552183309,291.0,210.89,210.74,32.03403005]
[1734552183505,291.0,210.93,210.78,32.03403005]
[1734552183713,291.0,210.92,210.88,2.372]
[1734552184014,291.0,211.03,210.86,32.03403005]
[1734552184319,291.0,211.05,210.89,2.3719]
[1734552184508,2.3708,211.0,210.82,32.03403005]
[1734552184706,5.78926781,210.98,210.82,32.03403005]
[1734552184906,323.03403005,210.97,210.78,40.39403005]
[1734552185110,2.3713,210.95,210.78,40.39403005]
[1734552185311,291.0,210.94,210.82,32.03403005]
[1734552185511,291.0,210.94,210.89,2.3719]
[1734552185712,5.78926781,210.98,210.87,32.03403005]
[1734552185912,291.0,211.05,210.92,32.03403005]
[1734552186119,291.0,211.06,211.0,32.03403005]
[1734552186311,10.05,211.07,211.0,32.03403005]
[1734552186513,10.05,211.07,211.04,32.03403005]
[1734552186709,0.3272,211.07,211.05,2.3701]
[1734552186918,5.60712586,211.19,211.04,32.03403005]
[1734552186919,291.0,211.18,211.04,32.03403005]
[1734552187114,291.0,211.18,211.13,32.03403005]
[1734552187315,5.60712586,211.19,211.13,32.03403005]
[1734552187511,291.0,211.26,211.13,32.03403005]
[1734552187718,294.0896,211.28,211.09,32.03403005]
[1734552187916,291.0,211.24,211.09,32.03403005]
[1734552188417,2.3682,211.23,211.05,37.69972737]
[1734552188620,291.0,211.15,211.05,37.69972737]
[1734552188815,291.0,211.15,211.05,5.66569732]
[1734552189016,9.1289,211.14,210.97,32.03403005]
[1734552189218,291.0,211.04,210.97,32.03403005]
[1734552189418,291.0,211.06,210.99,2.3707]
[1734552189723,9.1289,211.14,211.01,32.03403005]
[1734552189915,9.1289,211.14,211.03,2.3703]
[1734552190115,41.16293005,211.14,210.97,37.67699639]
[1734552190420,291.0,211.06,210.88,32.03403005]
[1734552190622,291.0,210.97,210.84,32.03403005]
[1734552190920,32.03403005,210.97,210.78,54.22]
[1734552191118,32.03403005,210.93,210.76,32.03403005]
[1734552191326,32.03403005,210.92,210.72,32.03403005]
[1734552191518,32.03403005,210.88,210.68,32.03403005]
[1734552191820,32.03403005,210.82,210.64,32.03403005]
[1734552192021,294.0804,210.81,210.64,32.03403005]
[1734552192218,291.0,210.8,210.69,5.82030215]
[1734552192413,3.0804,210.81,210.69,5.82030215]
[1734552192414,291.0,210.79,210.69,5.82030215]
[1734552192619,291.0,210.78,210.69,5.82030215]
[1734552192921,291.0,210.8,210.68,32.03403005]
[1734552193221,5.60975153,210.84,210.68,32.03403005]
[1734552193724,291.0,210.88,210.68,32.03403005]
[1734552194021,291.0,210.87,210.74,2.3736]
[1734552194216,296.6125957,210.86,210.74,2.3736]
[1734552194419,291.0,210.85,210.72,2.3737]
[1734552194618,32.03403005,210.82,210.67,5.57788441]
[1734552194815,3.077,210.81,210.67,5.57788441]
[1734552195121,3.077,210.81,210.7,2.374]
[1734552195313,291.0,210.8,210.61,32.03403005]
[1734552195513,291.0,210.85,210.72,2.3738]
[1734552195722,323.03403005,210.84,210.65,32.03403005]
[1734552195915,5.6125957,210.86,210.73,32.03403005]
[1734552196116,5.6125957,210.86,210.74,8.4]
[1734552196314,5.6125957,210.86,210.77,32.03403005]
[1734552196519,291.0,210.92,210.85,32.03403005]
[1734552196716,5.56760381,210.91,210.85,32.03403005]
[1734552196920,5.68801108,210.92,210.89,32.03403005]
[1734552197123,285.31968556,210.94,210.92,2.3715]
[1734552197319,5.60549366,211.0,210.93,32.03403005]
[1734552197622,151.86753852,211.11,210.99,32.03403005]
[1734552197623,145.72933852,211.11,210.99,32.03403005]
[1734552197821,3.1848,211.23,211.0,32.03403005]
[1734552198024,5.63110251,211.15,211.0,32.03403005]
[1734552198418,145.72933852,211.24,210.98,8.72]
[1734552198718,145.72933852,211.24,210.91,2.9925]
[1734552198719,3.1848,211.34,211.13,32.03403005]
[1734552198917,145.72933852,211.34,211.26,32.03403005]
[1734552199120,145.72933852,211.3,211.22,32.03403005]
[1734552199417,32.03403005,211.4,211.18,32.03403005]
[1734552199619,145.72933852,211.25,211.13,32.03403005]
[1734552199919,145.72933852,211.24,211.06,32.03403005]
[1734552200126,148.91683852,211.24,211.07,32.03403005]
[1734552200327,189.95086857,211.24,211.1,5.78940957]
[1734552200517,1.0,211.23,211.03,32.03403005]
[1734552200717,145.72933852,211.22,211.11,32.03403005]
[1734552200917,2.3683,211.22,211.06,5.68986676]
[1734552201122,1.0,211.23,211.08,32.03403005]
[1734552201324,32.03403005,211.2,211.06,5.68986676]
[1734552201628,145.72933852,211.11,211.06,5.68986676]
[1734552201826,145.72933852,211.11,210.92,32.03403005]
[1734552202027,32.03403005,211.08,210.93,2.3714]
[1734552202227,32.03403005,211.04,210.83,9.0]
[1734552202428,148.68553852,211.07,211.0,5.64436148]
[1734552202619,32.03403005,211.04,210.82,32.03403005]
[1734552202820,32.03403005,210.98,210.93,5.68872913]
[1734552203124,32.03403005,210.94,210.64,6.51022518]
[1734552203325,32.03403005,210.76,210.64,6.51022518]
[1734552203525,32.03403005,210.81,210.75,5.71231059]
[1734552203727,54.22,210.97,210.65,32.03403005]
[1734552203728,145.72933852,210.85,210.65,32.03403005]
[1734552203932,145.72933852,210.84,210.66,5.58008909]
[1734552204130,32.03403005,210.81,210.64,0.94948727]
[1734552204323,145.72933852,210.8,210.64,0.94948727]
[1734552204522,145.72933852,210.8,210.64,32.98351732]
[1734552204722,5.62454287,210.79,210.65,0.87161502]
[1734552204931,5.62454287,210.79,210.63,32.03403005]
[1734552204932,145.72933852,210.78,210.63,32.03403005]
[1734552205234,1.0,210.97,210.62,5.76417333]
[1734552205235,32.03403005,210.9,210.67,32.03403005]
[1734552205427,5.71288051,210.81,210.67,32.03403005]
[1734552205624,5.71288051,210.81,210.71,2.3739]
[1734552205824,145.72933852,210.8,210.72,0.87165277]
[1734552206132,145.72933852,210.8,210.72,11.11426367]
[1734552206432,145.72933852,210.8,210.73,0.87165277]
[1734552206627,145.72933852,210.8,210.69,20.40232833]
[1734552206825,145.72933852,210.79,210.69,20.40232833]
[1734552207026,145.72933852,210.78,210.69,20.40232833]
[1734552207430,32.03403005,210.71,210.6,0.87165277]
[1734552208128,32.03403005,210.75,210.6,0.87165277]
[1734552208434,145.72933852,210.74,210.63,32.03403005]
[1734552208629,1.0,210.77,210.62,2.9237]
[1734552208630,145.72933852,210.76,210.62,2.9237]
[1734552208827,1.0,210.77,210.68,32.03403005]
[1734552209131,145.72933852,210.85,210.68,32.03403005]
[1734552209326,5.78982851,210.79,210.68,32.03403005]
[1734552209526,5.78982851,210.79,210.74,2.3735]
[1734552209729,145.72933852,210.92,210.72,32.03403005]
[1734552209924,32.03403005,210.94,210.72,32.03403005]
[1734552210132,5.6519302,210.92,210.76,32.03403005]
[1734552210331,5.6519302,210.92,210.72,32.03403005]
[1734552210934,32.03403005,210.9,210.72,32.03403005]
[1734552211134,32.03403005,210.9,210.76,2.3733]
[1734552211335,32.03403005,210.9,210.68,86.27403005]
[1734552211336,32.03403005,210.86,210.68,86.27403005]
[1734552211531,145.72933852,210.88,210.78,2.3731]
[1734552211737,145.72933852,210.85,210.76,32.03403005]
[1734552211932,140.86953852,210.96,210.84,32.03403005]
[1734552212232,140.86953852,211.03,210.88,32.03403005]
[1734552212536,140.86953852,211.09,210.96,32.03403005]
[1734552212737,140.86953852,211.11,210.99,2.3707]
[1734552212931,5.71627315,211.14,211.0,32.03403005]
[1734552213237,5.71627315,211.14,210.97,6.1983]
[1734552213430,5.71627315,211.14,211.03,32.03403005]
[1734552213628,140.86953852,211.17,211.03,37.63466895]
[1734552213830,35.23694117,211.16,211.03,5.6006389]
[1734552214029,35.23694117,211.16,210.97,38.23233005]
[1734552214236,76.33704097,211.16,211.05,2.37]
[1734552214438,76.33704097,211.16,211.08,5.82925962]
[1734552214937,140.86953852,211.17,211.08,5.82925962]
[1734552215140,140.86953852,211.26,211.08,5.82925962]
[1734552215334,140.86953852,211.17,211.1,2.3695]
[1734552215540,140.86953852,211.21,211.08,5.82925962]
[1734552215740,140.86953852,211.21,211.1,32.03403005]
[1734552215937,140.86953852,211.24,211.14,2.369]
[1734552216142,2.3675,211.29,211.14,2.369]
[1734552216143,140.86953852,211.29,211.14,32.03403005]
[1734552216335,32.03403005,211.35,211.14,32.03403005]
[1734552216535,140.86953852,211.37,211.18,32.03403005]
[1734552216932,140.86953852,211.37,211.15,3.2108]
[1734552216933,32.03403005,211.35,211.15,3.2108]
[1734552217133,140.86953852,211.24,211.13,32.03403005]
[1734552217434,291.0,211.21,211.08,32.03403005]
[1734552217642,32.03403005,211.19,211.01,3.2108]
[1734552217843,32.03403005,211.19,210.99,32.03403005]
[1734552218045,291.0,211.14,211.08,5.71965998]
[1734552218349,323.03403005,211.11,210.98,4.84456846]
[1734552218547,5.57074307,211.2,210.98,4.84456846]
[1734552218548,323.03403005,211.05,210.98,5.70033488]
[1734552218746,323.03403005,211.05,210.83,32.03403005]
[1734552218747,32.03403005,211.05,210.83,32.03403005]
[1734552218946,32.03403005,211.01,210.84,6.10496051]
[1734552219147,32.03403005,210.97,210.85,1.25873854]
[1734552219349,32.03403005,210.93,210.89,5.72307029]
[1734552219545,32.03403005,210.92,210.85,4.84622197]
[1734552219849,32.03403005,210.88,210.86,4.84679893]
[1734552220151,323.03403005,210.87,210.79,1.25921098]
[1734552220351,32.03403005,210.85,210.8,1.25993694]
[1734552220651,291.0,210.84,210.68,32.03403005]
[1734552220842,291.0,210.83,210.69,1.26028499]
[1734552221042,291.0,210.86,210.7,1.26028499]
[1734552221242,293.3723,210.86,210.72,2.3738]
[1734552221442,32.03403005,210.85,210.73,1.26028499]
[1734552221651,291.0,210.84,210.74,1.26028499]
[1734552221852,291.0,210.83,210.78,2.3731]
[1734552222048,5.82361046,210.86,210.79,1.26028499]
[1734552222348,291.0,210.85,210.8,1.26028499]
[1734552222549,5.82361046,210.86,210.81,1.26028499]
[1734552222747,291.0,210.85,210.82,1.26028499]
[1734552222946,291.0,210.84,210.72,84.28118264]
[1734552223143,5.82361046,210.86,210.72,84.28118264]
[1734552223350,5.82361046,210.86,210.79,2.373]
[1734552223650,5.57549594,210.85,210.74,52.24715259]
[1734552223845,291.0,210.84,210.74,52.24715259]
[1734552224047,37.60952599,210.85,210.75,1.26049454]
[1734552224252,37.60952599,210.85,210.76,1.26049454]
[1734552224455,2.3727,210.82,210.79,52.24715259]
[1734552224749,32.03403005,210.8,210.76,78.37072889]
[1734552224952,291.0,210.79,210.76,78.37072889]
[1734552225152,291.0,210.78,210.73,128.48071708]
[1734552225345,291.0,210.78,210.53,32.03403005]
[1734552225346,32.03403005,210.74,210.7,99.75184079]
[1734552226144,2.3739,210.71,210.61,2.375]
[1734552226345,32.03403005,210.77,210.57,32.03403005]
[1734552226550,1.0,210.78,210.61,32.03403005]
[1734552226757,32.03403005,210.77,210.57,32.03403005]
[1734552226949,32.03403005,210.77,210.58,133.19882389]
[1734552227149,34.40683005,210.81,210.7,2.374]
[1734552227350,32.03403005,210.81,210.61,32.03403005]
[1734552227545,37.74631406,210.81,210.61,32.03403005]
[1734552227954,291.0,210.84,210.67,5.77840765]
[1734552228149,323.03403005,210.85,210.68,6.0713]
[1734552228355,2.3726,210.83,210.68,6.0713]
[1734552228649,291.0,210.83,210.68,6.0713]
[1734552228855,32.03403005,210.81,210.68,6.0713]
[1734552229452,37.69387118,210.85,210.68,6.0713]
[1734552230057,291.0,210.84,210.68,38.10533005]
[1734552230261,32.03403005,210.81,210.68,6.0713]
[1734552230457,291.0,210.8,210.68,6.0713]
[1734552230752,32.03403005,210.81,210.68,6.0713]
[1734552230953,291.0,210.8,210.68,6.0713]
[1734552231347,291.0,210.77,210.68,6.0713]
[1734552231552,2.3734,210.76,210.68,6.0713]
[1734552231855,291.0,210.75,210.68,6.0713]
[1734552232060,2.3727,210.83,210.69,2.3741]
[1734552232249,323.03403005,210.85,210.68,6.0713]
[1734552232450,32.03403005,210.89,210.69,32.03403005]
[1734552232655,32.03403005,210.93,210.73,32.03403005]
[1734552233055,32.03403005,210.93,210.73,86.29403005]
[1734552233560,10.0,210.8,210.73,54.26]
[1734552233752,32.03403005,210.93,210.73,54.26]
[1734552233948,32.03403005,210.93,210.79,5.79541084]
[1734552234150,291.0,210.92,210.8,2.3729]
[1734552234358,32.03403005,210.93,210.79,5.79541084]
[1734552234549,291.0,210.98,210.81,32.03403005]
[1734552234749,291.0,211.0,210.9,2.3717]
[1734552234948,291.0,210.98,210.86,6.0616]
[1734552235158,291.0,210.97,210.86,6.0616]
[1734552235454,291.0,210.98,210.86,6.0616]
[1734552235758,2.372,210.89,210.79,5.79541084]
[1734552235958,32.03403005,210.92,210.79,5.79541084]
[1734552236252,32.03403005,210.96,210.79,5.79541084]
[1734552236451,291.0,210.88,210.79,5.79541084]
[1734552236649,291.0,210.85,210.79,5.79541084]
[1734552236850,291.0,210.88,210.79,5.79541084]
[1734552237049,291.0,210.95,210.79,37.82944089]
[1734552237253,291.0,210.98,210.79,37.82944089]
[1734552237453,291.0,210.98,210.83,32.03403005]
[1734552237657,36.39877012,210.97,210.87,32.03403005]
[1734552238059,2.3706,211.01,210.84,32.1059641]
[1734552238252,78.8456762,211.03,210.88,32.1059641]
[1734552238652,78.8456762,211.03,210.92,32.1059641]
[1734552238859,721.26411813,211.09,210.96,32.1059641]
[1734552238860,78.8456762,211.08,210.96,32.1059641]
[1734552239061,78.8456762,211.08,211.01,2.3705]
[1734552239257,78.8456762,211.08,210.97,9.046]
[1734552239456,78.8456762,211.08,210.87,34.65181738]
[1734552239662,291.0,211.07,210.88,6.0647]
[1734552239859,291.0,210.92,210.88,6.0647]
[1734552240260,291.0,210.96,210.88,6.0647]
[1734552240461,291.0,210.99,210.88,6.0647]
[1734552240659,291.0,210.99,210.88,11.87486222]
[1734552240855,291.0,211.04,210.91,2.3716]
[1734552241056,291.0,210.99,210.88,11.87486222]
[1734552241264,291.0,210.98,210.88,11.87486222]
[1734552241561,291.0,210.96,210.81,2.3728]
[1734552241856,291.0,210.95,210.85,5.56555974]
[1734552242052,291.0,211.04,210.85,5.56555974]
[1734552242253,291.0,211.05,210.85,5.56555974]
[1734552242457,291.0,210.94,210.85,5.56555974]
[1734552242762,291.0,210.87,210.79,3.0356]
[1734552242965,291.0,210.94,210.73,6.1316]
[1734552243356,34.65181738,210.95,210.69,54.24]
[1734552243560,34.65181738,210.9,210.69,54.24]
[1734552243762,40.29701136,210.9,210.73,5.60875868]
[1734552244259,1.0,210.89,210.73,5.60875868]
[1734552244562,291.0,210.88,210.62,34.65181738]
[1734552244765,291.0,210.87,210.7,5.55068992]
[1734552245064,291.0,210.86,210.7,5.55068992]
[1734552245255,2.3728,210.84,210.73,2.3739]
[1734552245455,291.0,210.83,210.7,5.55068992]
[1734552245655,291.0,210.82,210.58,6.057]
[1734552245854,2.3738,210.75,210.65,2.3748]
[1734552246059,291.0,210.74,210.58,6.057]
[1734552246361,5.64519398,210.9,210.65,5.57620863]
[1734552246362,291.0,210.73,210.65,5.57620863]
[1734552246664,291.0,210.81,210.67,34.65181738]
[1734552246864,5.64519398,210.9,210.67,34.65181738]
[1734552247260,40.29701136,210.9,210.65,5.57620863]
[1734552247461,2.3736,210.77,210.65,5.57620863]
[1734552247662,291.0,210.76,210.65,5.57620863]
[1734552247861,291.0,210.75,210.65,5.57620863]
[1734552248062,291.0,210.88,210.65,5.57620863]
[1734552248358,291.0,210.87,210.65,5.57620863]
[1734552248566,291.0,210.86,210.65,5.57620863]
[1734552248865,291.0,210.86,210.7,2.3743]
[1734552249062,1.0,210.87,210.65,5.57620863]
[1734552249365,1.0,210.87,210.66,2.3747]
[1734552249563,34.65181738,210.85,210.58,20.33091073]
[1734552249867,2.3746,210.68,210.58,3.0602]
[1734552250068,2.3746,210.68,210.58,8.63048718]
[1734552250363,2.3746,210.68,210.52,34.65181738]
[1734552250364,291.0,210.68,210.52,34.65181738]
[1734552250662,34.65181738,210.75,210.56,5.60447121]
[1734552250864,291.0,210.74,210.49,2.9261]
[1734552251166,5.78678602,210.69,210.49,2.9261]
[1734552251358,291.0,210.68,210.49,2.9261]
[1734552251559,2.3754,210.61,210.51,2.3764]
[1734552251762,291.0,210.6,210.49,8.70149134]
[1734552252457,291.0,210.6,210.5,0.87244373]
[1734552252661,2.3749,210.65,210.55,2.376]
[1734552252865,291.0,210.64,210.49,8.70149134]
[1734552253162,1.0,210.68,210.49,5.77539134]
[1734552253369,291.0,210.67,210.5,0.8723085]
[1734552253569,291.0,210.66,210.5,0.8723085]
[1734552253770,1.0,210.68,210.59,2.3756]
[1734552253965,34.65181738,210.75,210.5,35.52412588]
[1734552254167,5.76974643,210.7,210.51,0.87211185]
[1734552254964,5.76974643,210.7,210.52,0.87211185]
[1734552255265,1.0,210.74,210.53,3.2329]
[1734552255471,367.98313461,210.84,210.55,34.65181738]
[1734552255862,291.0,210.79,210.6,34.65181738]
[1734552256064,291.0,210.78,210.6,34.65181738]
[1734552256273,291.0,210.79,210.61,0.87206639]
[1734552256479,291.0,210.79,210.55,34.65181738]
[1734552256974,291.0,210.74,210.64,5.61467979]
[1734552257170,291.0,210.72,210.64,5.61467979]
[1734552257376,291.0,210.72,210.55,34.65181738]
[1734552257377,2.3749,210.67,210.57,2.3759]
[1734552257676,291.0,210.67,210.53,6.4689]
[1734552257970,5.68311672,210.83,210.53,6.4689]
[1734552257971,291.0,210.74,210.57,5.80516258]
[1734552258169,291.0,210.73,210.57,5.80516258]
[1734552258473,293.3742,210.74,210.57,5.80516258]
[1734552258665,296.68311672,210.83,210.6,34.65181738]
[1734552258872,291.0,210.83,210.65,34.65181738]
[1734552259072,291.0,210.83,210.66,3.124]
[1734552259766,5.81776885,210.9,210.7,34.65181738]
[1734552259971,5.81776885,210.9,210.75,34.65181738]
[1734552260166,5.81776885,210.9,210.76,6.2164]
[1734552260566,2.3715,210.95,210.76,6.2164]
[1734552260768,291.0,210.96,210.76,6.2164]
[1734552261174,291.0,210.96,210.74,5.57721442]
[1734552261475,291.0,210.83,210.67,9.3991]
[1734552261677,2.3731,210.81,210.67,9.3991]
[1734552261974,291.0,210.78,210.67,6.1835]
[1734552262174,291.0,210.78,210.6,54.3]
[1734552262476,34.65181738,210.79,210.63,5.56108756]
[1734552262675,291.0,210.75,210.51,34.65181738]
[1734552262876,291.0,210.75,210.54,3.2156]
[1734552263073,293.373,210.82,210.62,5.61351301]
[1734552263377,291.0,210.79,210.63,6.157]
[1734552263569,291.0,210.82,210.63,3.1082]
[1734552263768,291.0,210.82,210.61,5.78674497]
[1734552263971,291.0,210.81,210.65,34.65181738]
[1734552264276,272.01585726,210.81,210.65,34.65181738]
[1734552264479,34.65181738,210.93,210.65,34.65181738]
[1734552264480,272.01585726,210.84,210.65,34.65181738]
[1734552264670,272.01585726,210.84,210.6,34.65181738]
[1734552264980,5.62377017,210.89,210.74,5.76907987]
[1734552264981,272.01585726,210.89,210.74,5.76907987]
[1734552265179,277.62217904,210.97,210.75,3.1082]
[1734552265383,272.01585726,210.94,210.75,9.2606]
[1734552265679,272.01585726,210.98,210.75,9.2606]
[1734552265870,272.01585726,210.94,210.75,9.2606]
[1734552266074,272.01585726,210.93,210.75,9.2606]
[1734552266280,272.01585726,210.86,210.75,9.2606]
[1734552266575,291.0,210.85,210.74,5.76907987]
[1734552266775,291.0,210.85,210.61,9.2841]
[1734552267081,291.0,210.82,210.7,5.57556476]
[1734552267274,291.0,210.8,210.61,9.2841]
[1734552267475,2.3738,210.75,210.66,5.57442561]
[1734552267678,291.0,210.77,210.66,5.57442561]
[1734552267879,291.0,210.76,210.65,5.806812]
[1734552268176,291.0,210.8,210.65,5.806812]
[1734552268380,291.0,210.81,210.65,5.806812]
[1734552268577,291.0,210.8,210.65,5.806812]
[1734552269577,291.0,210.82,210.61,9.2841]
[1734552269879,34.65181738,210.83,210.6,0.94966761]
[1734552270075,291.0,210.82,210.6,0.94966761]
[1734552270279,291.0,210.74,210.62,5.79587184]
[1734552270471,291.0,210.73,210.56,6.4036]
[1734552270776,1.0,210.82,210.58,5.7098171]
[1734552271678,2.3738,210.75,210.6,2.3754]
[1734552271979,74.79589228,210.82,210.58,5.7098171]
[1734552272275,0.77843126,210.81,210.58,5.7098171]
[1734552272474,5.68062963,210.75,210.58,5.7098171]
[1734552272677,2.3739,210.74,210.65,2.3749]
[1734552272876,291.0,210.73,210.56,6.4036]
[1734552273175,2.3749,210.65,210.53,34.65181738]
[1734552273372,1.0,210.74,210.53,34.65181738]
[1734552273571,1.0,210.74,210.55,6.5399467]
[1734552273976,291.0,210.8,210.58,34.65181738]
[1734552274280,54.3,210.94,210.63,34.65181738]
[1734552274281,291.0,210.79,210.63,34.65181738]
[1734552274574,291.0,210.78,210.58,34.65181738]
[1734552274771,2.3742,210.71,210.61,2.3753]
[1734552274973,291.0,210.7,210.55,6.5399467]
[1734552275171,291.0,210.73,210.55,6.5399467]
[1734552275381,1.0,210.78,210.58,34.65181738]
[1734552275581,292.0,210.78,210.65,34.65181738]
[1734552275878,1.0,210.78,210.63,54.3]
[1734552276079,291.0,210.73,210.55,41.19176408]
[1734552276278,291.0,210.72,210.55,41.19176408]
[1734552276476,291.0,210.71,210.55,41.19176408]
[1734552276674,291.0,210.71,210.6,34.65181738]
[1734552276881,291.0,210.81,210.6,34.65181738]
[1734552277074,291.0,210.81,210.55,41.19176408]
[1734552277380,34.65181738,210.8,210.55,6.5399467]
[1734552277579,291.0,210.74,210.55,0.87242972]
[1734552277876,34.65181738,210.75,210.55,0.87242972]
[1734552278175,291.0,210.59,210.55,0.63635972]
[1734552278375,5.66168595,210.69,210.55,0.63635972]
[1734552278577,2.3758,210.57,210.55,0.63635972]
[1734552278971,5.66168595,210.69,210.55,0.63635972]
[1734552279581,2.3757,210.58,210.55,0.63635972]
[1734552280078,1.0,210.68,210.55,3.01225972]
[1734552280277,291.0,210.67,210.55,0.63635972]
[1734552280480,1.0,210.68,210.55,0.63635972]
[1734552280678,296.66168595,210.69,210.55,0.63635972]
[1734552280879,5.66168595,210.69,210.55,0.63635972]
[1734552281178,2.3758,210.57,210.55,0.63635972]
[1734552281384,291.0,210.56,210.55,0.63635972]
[1734552281578,1.0,210.66,210.57,2.3757]
[1734552281783,1.0,210.66,210.55,0.63635972]
[1734552282083,2.3758,210.57,210.55,0.63635972]
[1734552282278,291.0,210.56,210.55,0.63635972]
[1734552282473,1.0,210.66,210.55,0.63635972]
[1734552282979,5.66168595,210.69,210.55,0.63635972]
[1734552283173,2.3746,210.67,210.6,2.3753]
[1734552283481,0.21094,210.67,210.55,0.63635972]
[1734552283977,291.0,210.77,210.55,0.63635972]
[1734552284173,291.0,210.75,210.55,0.63635972]
[1734552284372,291.0,210.67,210.55,0.63635972]
[1734552284672,291.0,210.66,210.55,0.63635972]
[1734552285381,291.0,210.67,210.55,0.63635972]
[1734552285584,5.68428945,210.76,210.55,0.63635972]
[1734552285585,291.0,210.68,210.55,0.63635972]
[1734552285785,291.0,210.65,210.55,0.63635972]
[1734552286081,291.0,210.64,210.55,0.63635972]
[1734552286281,291.0,210.75,210.55,0.63635972]
[1734552286882,291.0,210.77,210.55,0.63635972]
[1734552287185,291.0,210.85,210.63,34.65181738]
[1734552287383,291.0,210.82,210.64,9.2039]
[1734552287582,291.0,210.85,210.64,9.2039]
[1734552287778,184.39890777,210.91,210.73,5.58365603]
[1734552287983,184.39890777,210.91,210.78,2.3733]
[1734552288182,184.39890777,210.91,210.73,40.23547341]
[1734552288383,184.39890777,210.96,210.78,34.65181738]
[1734552288685,184.39890777,210.96,210.79,63.5189]
[1734552288888,184.39890777,210.96,210.83,34.65181738]
[1734552289184,184.39890777,210.99,210.93,2.3716]
[1734552289482,291.0,210.98,210.79,9.1989]
[1734552289685,291.0,210.97,210.83,5.64405068]
[1734552289878,291.0,210.87,210.79,6.2146]
[1734552290082,291.0,210.88,210.82,5.59049316]
[1734552290286,291.0,210.88,210.79,6.2146]
[1734552290586,291.0,210.85,210.69,2.9843]
[1734552290777,291.0,210.75,210.64,3.0491]
[1734552290977,291.0,210.75,210.67,5.75280876]
[1734552291186,291.0,210.74,210.64,3.0491]
[1734552291380,291.0,210.77,210.66,5.74482904]
[1734552291581,291.0,210.86,210.66,5.74482904]
[1734552291786,291.0,210.87,210.71,2.3741]
[1734552291985,291.0,210.86,210.72,2.9704]
[1734552292486,291.0,210.91,210.72,2.9704]
[1734552292886,291.0,210.92,210.73,37.62131738]
[1734552293389,291.0,210.92,210.8,5.82006641]
[1734552293588,291.0,210.98,210.8,5.82006641]
[1734552293784,291.0,210.96,210.8,5.82006641]
[1734552293986,0.77991945,210.95,210.81,3.1149]
[1734552294183,245.86521036,210.99,210.81,3.1149]
[1734552294387,245.86521036,210.99,210.83,34.65181738]
[1734552294783,291.0,210.98,210.81,3.1149]
[1734552295092,34.65181738,211.01,210.73,2.9695]
[1734552295093,34.65181738,210.91,210.73,2.9695]
[1734552295285,291.0,210.9,210.74,5.81911911]
[1734552295587,291.0,210.87,210.74,5.81911911]
[1734552295793,34.65181738,210.91,210.74,5.81911911]
[1734552296085,291.0,210.84,210.68,2.3745]
[1734552296291,291.0,210.77,210.7,5.81741095]
[1734552297291,291.0,210.87,210.7,5.81741095]
[1734552297682,291.0,210.87,210.8,2.3731]
[1734552297883,291.0,210.89,210.7,5.81741095]
[1734552298287,2.3732,210.8,210.67,2.3746]
[1734552298490,291.0,210.86,210.69,5.73234098]
[1734552298795,2.373,210.82,210.71,2.3742]
[1734552299096,291.0,210.81,210.69,5.73234098]
[1734552299284,2.3731,210.81,210.69,5.73234098]
[1734552299488,0.77934429,210.8,210.69,5.73234098]
[1734552299786,0.77934429,210.8,210.78,2.3733]
[1734552299987,40.48388594,210.92,210.69,5.73234098]
[1734552300384,34.65181738,210.87,210.69,5.73234098]
[1734552300694,34.65181738,210.87,210.58,57.3949]
[1734552300891,11.69808896,210.86,210.66,5.71752272]
[1734552301090,0.77969817,210.85,210.66,5.71752272]
[1734552301290,0.77969817,210.84,210.66,5.71752272]